bitfinex/quotes_ETHUSD_20240916
["timestamp","ask_amount","ask_price","bid_price","bid_amount"]
[1726448047356,4.75690892,2313.4,2313.0,2.3868]
[1726448047559,0.55,2313.4,2313.0,2.3868]
[1726448047932,0.10911165,2313.3,2313.0,2.3868]
[1726448048630,0.10911165,2313.3,2313.0,7.81735257]
[1726448048830,4.32234,2313.6,2313.0,7.81735257]
[1726448049026,0.10911165,2313.5,2313.0,7.81735257]
[1726448049617,4.43158165,2313.5,2313.0,6.71015]
[1726448051267,4.43158165,2313.5,2313.0,2.3868]
[1726448052177,4.87281,2313.4,2313.0,2.3868]
[1726448052338,4.32285,2313.3,2313.0,2.3868]
[1726448052536,4.32251,2313.5,2313.0,2.3868]
[1726448053172,0.10911165,2313.4,2313.0,2.3868]
[1726448055177,4.43185165,2313.4,2313.0,2.3868]
[1726448055844,0.10911165,2313.4,2313.0,2.3868]
[1726448056032,0.55227382,2313.4,2313.0,2.3868]
[1726448056434,0.55227382,2313.4,2312.9,0.0380057]
[1726448056435,6.61089,2313.3,2312.9,0.0380057]
[1726448056947,0.10932605,2313.2,2312.9,0.0380057]
[1726448057335,6.61089,2313.3,2312.9,0.0380057]
[1726448057531,0.10932605,2313.1,2312.9,0.0380057]
[1726448057749,6.61089,2313.3,2312.9,0.0380057]
[1726448057999,0.10932605,2313.0,2312.9,0.0380057]
[1726448058677,11.59408605,2313.0,2312.9,0.0380057]
[1726448058870,15.80099497,2313.0,2312.9,0.0380057]
[1726448059064,20.12437497,2313.0,2312.9,0.0380057]
[1726448060394,21.4713189,2313.0,2312.9,0.0380057]
[1726448060597,24.54740171,2313.0,2312.9,0.0380057]
[1726448062391,27.54740171,2313.0,2312.9,0.0380057]
[1726448062608,26.20045778,2313.0,2312.9,0.0380057]
[1726448064755,21.32707778,2313.0,2312.9,0.0380057]
[1726448066083,21.87707778,2313.0,2312.9,0.0380057]
[1726448069669,0.10932605,2313.0,2312.9,0.0380057]
[1726448069992,6.70587,2313.8,2313.0,2.3882]
[1726448070572,6.70587,2313.8,2313.1,4.32311]
[1726448070900,4.32208,2313.7,2313.1,5.43038957]
[1726448072074,4.32208,2313.7,2313.1,5.43033957]
[1726448072075,0.55,2313.7,2313.1,5.43033957]
[1726448072736,4.87221,2313.7,2313.1,5.43033957]
[1726448072883,0.55,2313.7,2313.1,5.43033957]
[1726448073084,1.34694393,2314.0,2313.3,2.3483]
[1726448073327,4.32152,2314.0,2313.3,6.67097]
[1726448073479,4.32152,2314.0,2313.3,7.75875789]
[1726448075097,4.32152,2314.0,2313.4,4.32263]
[1726448075786,0.10476683,2313.9,2313.4,4.32263]
[1726448076817,4.42649683,2313.9,2313.3,7.75875789]
[1726448077032,0.10476683,2313.9,2313.4,0.77587579]
[1726448077327,4.32211,2313.7,2313.3,2.3483]
[1726448077631,4.32211,2313.7,2312.9,4.3615057]
[1726448077632,4.32258,2313.5,2313.0,2.4427]
[1726448077817,4.32264,2313.4,2313.0,2.4427]
[1726448078188,0.10497454,2313.3,2313.0,2.4427]
[1726448079395,0.10497454,2313.3,2312.9,0.0380057]
[1726448079396,4.42781454,2313.3,2312.9,0.0380057]
[1726448079608,5.30285199,2313.3,2312.9,0.0380057]
[1726448079922,9.62579199,2313.3,2312.9,0.0380057]
[1726448080140,5.30285199,2313.3,2312.9,0.0380057]
[1726448080429,9.62582199,2313.3,2312.9,0.0380057]
[1726448080640,9.62578199,2313.3,2312.9,0.0380057]
[1726448080933,5.30285199,2313.3,2312.9,0.0380057]
[1726448081088,4.42781454,2313.3,2312.9,0.0380057]
[1726448083003,0.10497454,2313.3,2313.0,2.4665]
[1726448083386,4.32254,2313.5,2313.0,2.4665]
[1726448083595,0.10465938,2313.2,2313.0,2.4665]
[1726448083794,4.32254,2313.5,2313.0,7.89327646]
[1726448084024,0.10465938,2313.1,2313.0,7.89327646]
[1726448084641,4.32254,2313.5,2313.0,7.89327646]
[1726448084793,0.10465938,2313.1,2313.0,7.89327646]
[1726448084987,0.55,2313.6,2313.1,4.32316]
[1726448085292,0.55,2313.6,2313.0,6.78988]
[1726448085293,4.32246,2313.5,2313.0,6.78988]
[1726448085486,0.10450895,2313.4,2313.0,6.78988]
[1726448085687,0.10450895,2313.4,2313.0,8.32570246]
[1726448086014,4.87236,2313.6,2313.1,4.32318]
[1726448086226,0.10449462,2313.3,2313.1,4.32318]
[1726448086524,0.10449462,2313.2,2313.1,4.32318]
[1726448086724,4.87236,2313.6,2313.1,4.32318]
[1726448086934,0.10449462,2313.5,2313.1,4.32318]
[1726448087443,0.10449462,2313.5,2313.4,4.32264]
[1726448087781,7.37,2313.9,2313.4,6.80534]
[1726448087940,0.10451611,2313.5,2313.4,2.4827]
[1726448088119,4.32209,2313.7,2313.4,2.4827]
[1726448088320,0.10451611,2313.6,2313.4,2.4827]
[1726448089839,4.42679611,2313.6,2313.1,2.3435]
[1726448090144,0.10451611,2313.6,2313.1,6.66669]
[1726448090317,0.10451611,2313.6,2313.1,8.19017446]
[1726448091392,0.10451611,2313.6,2313.2,4.32301]
[1726448095126,0.10451611,2313.6,2313.1,8.19012446]
[1726448095348,0.10451611,2313.6,2313.2,4.32301]
[1726448098054,0.10451611,2313.6,2313.4,4.32251]
[1726448098360,2.2795,2313.7,2313.2,0.81985457]
[1726448098511,0.10462354,2313.5,2313.1,2.3435]
[1726448103848,0.55,2313.4,2312.9,4.3614757]
[1726448104060,2.4762,2313.3,2312.9,4.3614757]
[1726448104351,0.10462354,2313.2,2312.9,4.3614757]
[1726448104526,0.55,2313.1,2312.9,0.0380057]
[1726448104727,15.87986892,2313.0,2312.9,0.0380057]
[1726448104931,3.13082354,2313.0,2312.9,0.0380057]
[1726448105263,3.95075863,2313.0,2312.9,0.0380057]
[1726448105557,8.27413863,2313.0,2312.9,0.0380057]
[1726448106083,12.59751863,2313.0,2312.9,0.0380057]
[1726448110077,8.27413863,2313.0,2312.9,0.0380057]
[1726448111793,12.59751863,2313.0,2312.9,0.0380057]
[1726448112472,19.92089863,2313.0,2312.9,0.0380057]
[1726448112783,21.71682387,2313.0,2312.9,0.0380057]
[1726448112986,19.92089863,2313.0,2312.9,0.0380057]
[1726448113295,21.71682387,2313.0,2312.9,0.0380057]
[1726448113587,19.92089863,2313.0,2312.9,0.0380057]
[1726448113766,21.71682387,2313.0,2312.9,0.0380057]
[1726448114361,15.59751863,2313.0,2312.9,0.0380057]
[1726448118403,5.24793863,2313.0,2312.9,0.0380057]
[1726448118767,11.85371863,2313.0,2312.9,0.0380057]
[1726448119694,12.40371863,2313.0,2312.9,0.0380057]
[1726448127819,19.72709863,2313.0,2312.9,0.0380057]
[1726448130917,15.40371863,2313.0,2312.9,0.0380057]
[1726448131085,19.72709863,2313.0,2312.9,0.0380057]
[1726448131577,15.40371863,2313.0,2312.9,0.0380057]
[1726448132422,19.72709863,2313.0,2312.9,0.0380057]
[1726448132717,15.40371863,2313.0,2312.9,0.0380057]
[1726448133229,19.72709863,2313.0,2312.9,0.0380057]
[1726448138428,15.40371863,2313.0,2312.9,0.0380057]
[1726448139034,19.72709863,2313.0,2312.9,0.0380057]
[1726448139542,15.40371863,2313.0,2312.9,0.0380057]
[1726448139740,13.12131863,2313.0,2312.9,0.0380057]
[1726448143248,14.91724387,2313.0,2312.9,0.0380057]
[1726448144517,15.36626387,2313.0,2312.9,0.0380057]
[1726448144847,13.12131863,2313.0,2312.9,0.0380057]
[1726448145146,19.68964387,2313.0,2312.9,0.0380057]
[1726448147812,17.44469863,2313.0,2312.9,0.0380057]
[1726448149272,19.89309863,2313.0,2312.9,0.0380057]
[1726448149432,22.58703292,2313.0,2312.9,0.0380057]
[1726448149634,15.56971863,2313.0,2312.9,0.0380057]
[1726448149821,19.89309863,2313.0,2312.9,0.0380057]
[1726448150026,24.53106704,2313.0,2312.9,0.0380057]
[1726448151966,20.20768704,2313.0,2312.9,0.0380057]
[1726448152970,24.53106704,2313.0,2312.9,0.0380057]
[1726448153772,20.20768704,2313.0,2312.9,0.0380057]
[1726448157582,12.06535275,2313.0,2312.9,0.0380057]
[1726448157869,11.24541766,2313.0,2312.9,0.0380057]
[1726448158184,13.95294785,2313.0,2312.9,0.0380057]
[1726448158629,18.04659766,2313.0,2312.9,0.0380057]
[1726448158832,21.04659766,2313.0,2312.9,0.0380057]
[1726448159436,16.72321766,2313.0,2312.9,0.0380057]
[1726448159642,23.15460139,2313.0,2312.9,0.0380057]
[1726448160159,27.47798139,2313.0,2312.9,0.0380057]
[1726448160676,29.07894633,2313.0,2312.9,0.0380057]
[1726448160976,32.81026137,2313.0,2312.9,0.0380057]
[1726448161181,27.47798139,2313.0,2312.9,0.0380057]
[1726448162051,29.7478867,2313.0,2312.9,0.0380057]
[1726448162874,35.08206191,2313.0,2312.9,0.0380057]
[1726448163602,9.19938,2312.3,2312.2,0.0380057]
[1726448163764,16.52407,2312.3,2312.2,0.0380057]
[1726448163968,23.40058566,2312.3,2312.2,0.0380057]
[1726448164211,26.55759088,2312.3,2312.2,0.0380057]
[1726448164518,26.55759088,2312.3,2311.5,2.4930057]
[1726448164519,18.903,2311.6,2311.5,0.0380057]
[1726448164719,27.44293943,2311.6,2311.5,0.0380057]
[1726448165012,27.44293943,2311.6,2311.1,0.59967186]
[1726448165013,9.2035,2311.2,2311.1,0.59967186]
[1726448165160,16.11902373,2311.2,2311.1,0.59967186]
[1726448165363,16.22081507,2311.2,2311.1,0.59967186]
[1726448166102,16.22081507,2311.2,2310.9,2.2831]
[1726448166103,4.87705,2311.1,2310.9,2.2831]
[1726448166509,0.09751023,2311.0,2310.9,2.2831]
[1726448167165,4.97464023,2311.0,2310.9,2.2831]
[1726448169182,0.64751023,2311.0,2310.9,2.2831]
[1726448169501,0.64751023,2311.0,2310.9,2.51521057]
[1726448169502,0.09751023,2311.0,2310.9,2.51521057]
[1726448169714,4.32667,2311.3,2310.9,2.51521057]
[1726448170009,0.09742389,2311.0,2310.9,2.51521057]
[1726448170212,4.32667,2311.3,2310.9,2.51521057]
[1726448170368,0.09750304,2311.0,2310.9,2.51521057]
[1726448170575,4.32667,2311.3,2310.9,2.51521057]
[1726448170773,0.09750304,2311.0,2310.9,2.51521057]
[1726448171410,4.32667,2311.3,2310.9,2.51521057]
[1726448171590,0.09750304,2311.0,2310.9,2.51521057]
[1726448171795,4.32667,2311.3,2310.9,2.51521057]
[1726448172313,0.09750304,2311.2,2310.9,2.51521057]
[1726448172515,4.32667,2311.3,2310.9,2.51521057]
[1726448172816,0.09750304,2311.1,2310.9,6.84251057]
[1726448173025,4.32639,2311.4,2311.0,2.4878]
[1726448173173,4.32639,2311.4,2311.0,3.43328562]
[1726448173374,4.32639,2311.4,2311.0,2.4878]
[1726448173922,0.55,2311.5,2311.0,2.4878]
[1726448174208,4.32582,2311.7,2311.2,2.3479]
[1726448174776,11.69546,2311.9,2311.3,4.41298262]
[1726448174997,16.02103,2311.9,2311.5,2.4781]
[1726448175322,4.32516,2312.1,2311.5,2.4781]
[1726448175478,4.32526,2312.0,2311.6,0.72456283]
[1726448175675,4.32516,2312.1,2311.7,2.4781]
[1726448176583,4.77763731,2312.3,2311.7,2.4781]
[1726448176584,4.32499,2312.2,2311.7,4.32579]
[1726448176796,4.77763731,2312.3,2311.8,2.910679]
[1726448176797,4.32482,2312.3,2311.8,2.910679]
[1726448176985,8.64966,2312.3,2311.8,2.910679]
[1726448177526,4.32482,2312.3,2311.8,2.910679]
[1726448177805,4.32473,2312.3,2312.0,2.4781]
[1726448178010,8.64954,2312.3,2312.0,2.4781]
[1726448178188,4.32473,2312.3,2312.0,2.4781]
[1726448178388,8.64954,2312.3,2312.0,2.4781]
[1726448178789,8.64955,2312.3,2312.0,2.4781]
[1726448179512,4.32473,2312.3,2312.0,2.4781]
[1726448180414,8.64961,2312.3,2312.0,2.4781]
[1726448180601,4.32473,2312.3,2312.0,2.4781]
[1726448180801,4.32507,2312.1,2312.0,2.4781]
[1726448181105,4.4239107,2312.1,2312.0,2.4781]
[1726448181977,4.3254,2312.0,2311.6,2.489]
[1726448182684,0.0988407,2311.9,2311.6,2.489]
[1726448184386,0.0988407,2311.9,2311.7,2.4555]
[1726448184591,0.55,2312.2,2311.7,2.4555]
[1726448184801,0.0988407,2311.8,2311.7,2.4555]
[1726448185299,4.32507,2312.1,2311.7,2.4555]
[1726448185488,0.0988407,2311.8,2311.7,2.4555]
[1726448185699,4.32507,2312.1,2311.7,2.4555]
[1726448185900,0.0988407,2311.8,2311.7,2.4555]
[1726448186108,4.32533,2312.0,2311.7,2.4555]
[1726448186300,0.0988407,2311.8,2311.7,2.4555]
[1726448186732,4.32533,2312.0,2311.7,2.4555]
[1726448186893,4.32582,2311.7,2311.5,2.4474]
[1726448187086,8.65179,2311.7,2311.5,2.4474]
[1726448187326,0.09882631,2311.6,2311.1,2.4474]
[1726448187538,4.32657,2311.3,2311.1,2.4474]
[1726448188126,0.09881912,2311.2,2311.1,2.4474]
[1726448188340,4.32675,2311.2,2311.1,2.4474]
[1726448188628,4.32723,2311.0,2310.8,2.4180057]
[1726448188925,0.09854589,2310.9,2310.8,2.4180057]
[1726448189531,0.55,2311.1,2310.8,2.4180057]
[1726448189741,0.09834451,2310.9,2310.8,2.4180057]
[1726448189893,5.73102094,2311.1,2310.8,2.4180057]
[1726448190227,0.09834451,2310.9,2310.8,2.4180057]
[1726448190692,4.32687,2311.2,2310.8,2.4180057]
[1726448190887,0.09834451,2310.9,2310.8,2.4180057]
[1726448191121,8.65376,2311.2,2310.8,2.4180057]
[1726448191425,0.09834451,2310.9,2310.8,2.4180057]
[1726448191925,4.32687,2311.2,2310.8,2.4180057]
[1726448192447,0.09834451,2311.1,2310.8,2.4180057]
[1726448193841,0.09834451,2311.1,2310.8,0.71259227]
[1726448194000,0.09834451,2311.1,2310.9,2.3868]
[1726448194358,0.09821503,2311.0,2310.9,2.3868]
[1726448194832,0.55,2311.3,2310.9,2.3868]
[1726448195133,4.32676,2311.2,2310.9,2.3868]
[1726448195329,4.42497503,2311.2,2310.9,2.3868]
[1726448195913,0.09821503,2311.2,2310.9,0.67524957]
[1726448196244,4.32656,2311.4,2311.0,2.3868]
[1726448196540,7.37,2311.5,2311.0,2.3868]
[1726448196697,0.09828697,2311.3,2311.0,2.3868]
[1726448196913,4.77897923,2311.6,2311.0,3.1381898]
[1726448197120,0.09828697,2311.2,2311.1,2.3868]
[1726448197446,4.77897923,2311.6,2311.1,2.3868]
[1726448197447,4.32629,2311.5,2311.1,2.3868]
[1726448197847,0.09828697,2311.4,2311.1,2.3868]
[1726448200361,4.42467697,2311.4,2311.1,2.3868]
[1726448201013,8.75116697,2311.4,2311.1,2.3868]
[1726448201358,4.32658,2311.3,2311.1,2.3868]
[1726448201530,8.75118697,2311.4,2311.1,2.3868]
[1726448201733,0.09801377,2311.2,2311.1,2.3868]
[1726448202061,8.65292,2311.4,2311.1,2.3868]
[1726448202359,0.09801377,2311.2,2311.1,2.3868]
[1726448202563,8.65292,2311.4,2311.1,2.3868]
[1726448202855,9.56350192,2311.4,2311.1,2.3868]
[1726448203062,0.097985,2311.3,2311.1,2.3868]
[1726448207560,0.097985,2311.3,2311.1,6.71373]
[1726448207767,0.097985,2311.3,2311.2,6.49633943]
[1726448207938,4.32573,2311.8,2311.3,4.32645]
[1726448208142,4.32573,2311.8,2311.4,2.2824]
[1726448208341,8.65146,2311.8,2311.4,2.2824]
[1726448208782,8.65147,2311.8,2311.4,2.2824]
[1726448209170,8.65148,2311.8,2311.4,2.2824]
[1726448209668,4.32583,2311.7,2311.4,2.2824]
[1726448209876,7.37,2311.9,2311.4,2.2824]
[1726448209877,4.32603,2311.6,2311.4,2.2824]
[1726448210753,0.09797781,2311.5,2311.4,2.2824]
[1726448218163,4.42416781,2311.5,2311.4,2.2824]
[1726448218567,0.09797781,2311.5,2311.4,2.2824]
[1726448218882,4.42416781,2311.5,2311.4,2.2824]
[1726448219809,0.09797781,2311.5,2311.4,2.2824]
[1726448220930,0.09812884,2311.5,2311.4,2.2824]
[1726448221225,4.32585,2311.7,2311.4,2.9519615]
[1726448221432,0.09812884,2311.5,2311.4,2.9519615]
[1726448221584,7.37,2311.9,2311.6,2.4381]
[1726448221924,4.3254,2312.0,2311.6,6.7385475]
[1726448222322,8.65006,2312.2,2311.6,12.2379464]
[1726448222535,4.325,2312.2,2311.6,7.9119764]
[1726448223023,4.32538,2312.0,2311.6,3.69803697]
[1726448223198,4.32563,2311.8,2311.6,2.4381]
[1726448223409,4.326,2311.6,2311.3,5.4381]
[1726448223621,4.326,2311.6,2311.3,2.4381]
[1726448223622,8.65212,2311.6,2311.3,2.4381]
[1726448223803,4.326,2311.6,2311.3,2.4381]
[1726448223988,8.65213,2311.6,2311.3,2.4381]
[1726448224191,4.32623,2311.5,2311.3,2.4381]
[1726448224541,4.326,2311.6,2311.3,2.4381]
[1726448225108,8.65218,2311.6,2311.3,2.4381]
[1726448225514,8.6521,2311.6,2311.3,2.4381]
[1726448225725,0.0988479,2311.5,2311.3,2.4381]
[1726448226791,4.4250479,2311.5,2311.3,2.4381]
[1726448227421,4.3265,2311.4,2311.0,3.0]
[1726448227616,4.32667,2311.3,2310.8,5.4761057]
[1726448227816,4.32667,2311.3,2310.8,0.0380057]
[1726448227817,2.261,2311.2,2310.8,0.0380057]
[1726448228055,8.65462,2310.9,2310.8,0.0380057]
[1726448228511,8.7529933,2310.9,2310.8,0.0380057]
[1726448229370,11.0139933,2310.9,2310.8,0.0380057]
[1726448229520,12.54809063,2310.9,2310.8,0.0380057]
[1726448230465,13.09809063,2310.9,2310.8,0.0380057]
[1726448230953,18.77397793,2310.9,2310.8,0.0380057]
[1726448231334,17.42540063,2310.9,2310.8,0.0380057]
[1726448233263,18.77397793,2310.9,2310.8,0.0380057]
[1726448233557,17.42540063,2310.9,2310.8,0.0380057]
[1726448234552,4.4256833,2310.9,2310.8,0.0380057]
[1726448234726,0.0983733,2310.9,2310.8,0.0380057]
[1726448234953,4.4256833,2310.9,2310.8,0.0380057]
[1726448236017,9.3029933,2310.9,2310.8,0.0380057]
[1726448236961,15.8949033,2310.9,2310.8,0.0380057]
[1726448237118,18.4733443,2310.9,2310.8,0.0380057]
[1726448238433,19.8219216,2310.9,2310.8,0.0380057]
[1726448238633,18.4733443,2310.9,2310.8,0.0380057]
[1726448239385,27.59875736,2310.9,2310.8,0.0380057]
[1726448239667,22.82021881,2310.9,2310.8,0.0380057]
[1726448240373,27.59875736,2310.9,2310.8,0.0380057]
[1726448241164,28.04890895,2310.9,2310.8,0.0380057]
[1726448241968,28.04890895,2310.9,2310.1,0.0380057]
[1726448241969,8.65724,2310.2,2310.1,0.0380057]
[1726448242139,20.20529943,2310.2,2310.1,0.0380057]
[1726448242347,20.30173009,2310.2,2310.1,0.0380057]
[1726448242543,23.30173009,2310.2,2310.1,0.0380057]
[1726448243037,4.97505066,2310.2,2310.1,0.0380057]
[1726448243440,5.60017781,2310.2,2310.1,0.0380057]
[1726448243742,0.09643066,2310.2,2310.1,0.0380057]
[1726448243940,4.32813,2310.5,2310.1,0.0380057]
[1726448244126,0.09252692,2310.2,2310.1,0.0380057]
[1726448244325,4.32789,2310.6,2310.1,0.72418992]
[1726448244581,0.09252692,2310.2,2310.1,0.72418992]
[1726448244886,4.32789,2310.6,2310.1,0.72418992]
[1726448245051,0.09252692,2310.2,2310.1,0.0380057]
[1726448245251,4.32811,2310.5,2310.1,0.0380057]
[1726448245757,0.09252692,2310.4,2310.1,0.0380057]
[1726448246385,4.87862,2310.2,2310.1,0.0380057]
[1726448246753,4.97114692,2310.2,2310.1,0.0380057]
[1726448246969,9.29976692,2310.2,2310.1,0.0380057]
[1726448254071,13.51370635,2310.2,2310.1,0.0380057]
[1726448259366,15.89350635,2310.2,2310.1,0.0380057]
[1726448259526,17.95989235,2310.2,2310.1,0.0380057]
[1726448262127,15.58009235,2310.2,2310.1,0.0380057]
[1726448264885,17.85129235,2310.2,2310.1,0.0380057]
[1726448265736,22.17991235,2310.2,2310.1,0.0380057]
[1726448266069,25.17991235,2310.2,2310.1,0.0380057]
[1726448268585,22.90871235,2310.2,2310.1,0.0380057]
[1726448268884,23.36164195,2310.2,2310.1,0.0380057]
[1726448270185,30.05026195,2310.2,2310.1,0.0380057]
[1726448270357,30.05026195,2310.2,2309.5,0.0380057]
[1726448270358,16.53925,2309.6,2309.5,0.0380057]
[1726448270570,23.2056442,2309.6,2309.5,0.0380057]
[1726448272945,18.8758942,2309.6,2309.5,0.0380057]
[1726448274187,23.2056442,2309.6,2309.5,0.0380057]
[1726448274747,28.88085196,2309.6,2309.5,0.0380057]
[1726448274943,32.17272222,2309.6,2309.5,0.0380057]
[1726448275394,32.17272222,2309.6,2308.8,0.0380057]
[1726448275395,8.66212,2308.9,2308.8,0.0380057]
[1726448275550,13.42605943,2308.9,2308.8,0.0380057]
[1726448275747,0.64191335,2308.9,2308.8,2.4259057]
[1726448275977,0.09191335,2308.9,2308.8,2.4259057]
[1726448276986,4.97297335,2308.9,2308.8,2.4259057]
[1726448277801,19.20081706,2308.9,2308.8,0.0380057]
[1726448278000,22.20081706,2308.9,2308.8,0.0380057]
[1726448278326,26.53187706,2308.9,2308.8,0.0380057]
[1726448278614,33.10791649,2308.9,2308.8,0.0380057]
[1726448278836,33.10791649,2308.9,2308.1,0.0380057]
[1726448278837,13.42869943,2308.2,2308.1,0.0380057]
[1726448279174,13.52030221,2308.2,2308.1,0.0380057]
[1726448280416,0.64160278,2308.2,2308.1,0.0380057]
[1726448280622,0.09160278,2308.2,2308.1,2.4550057]
[1726448280999,4.33211,2308.4,2308.1,2.4550057]
[1726448281178,0.0868208,2308.3,2308.1,2.4550057]
[1726448281932,4.33193,2308.5,2308.1,2.4550057]
[1726448282213,0.0868208,2308.4,2308.1,2.4550057]
[1726448282721,0.0868208,2308.4,2308.1,6.7875657]
[1726448282928,0.0868208,2308.4,2308.2,2.417]
[1726448283081,0.55,2308.7,2308.2,2.417]
[1726448283430,4.33137,2308.8,2308.2,2.66250057]
[1726448283583,4.4184508,2308.6,2308.2,2.417]
[1726448284230,0.0868208,2308.6,2308.2,2.417]
[1726448284578,0.0868208,2308.6,2308.4,2.417]
[1726448284779,4.33128,2308.8,2308.4,2.417]
[1726448285099,0.0868208,2308.7,2308.4,6.74884]
[1726448285314,0.0868208,2308.7,2308.2,0.67874357]
[1726448285315,4.4182608,2308.7,2308.6,2.417]
[1726448285477,4.33137,2308.8,2308.6,2.417]
[1726448285676,0.0868208,2308.7,2308.6,2.417]
[1726448286089,4.33137,2308.8,2308.6,2.417]
[1726448286291,0.6368208,2308.7,2308.6,2.417]
[1726448286642,0.0868208,2308.7,2308.6,2.417]
[1726448286981,4.3307,2309.1,2308.6,2.417]
[1726448287177,0.0868208,2309.0,2308.6,2.417]
[1726448287895,4.4177108,2309.0,2308.6,2.417]
[1726448288396,0.0868208,2309.0,2308.6,2.417]
[1726448288929,4.33045,2309.3,2308.7,2.3546]
[1726448289330,4.33045,2309.3,2308.7,2.44121396]
[1726448289500,0.0874071,2309.2,2308.7,2.44121396]
[1726448289707,0.0874071,2309.2,2308.7,3.11848236]
[1726448289909,0.0874071,2309.2,2308.7,7.44988236]
[1726448290111,0.0874071,2309.2,2308.8,2.3546]
[1726448290421,4.33045,2309.3,2308.8,2.3546]
[1726448290625,0.0874071,2309.1,2308.8,2.3546]
[1726448290840,0.55,2309.4,2308.9,2.3287]
[1726448291042,0.0874071,2309.0,2308.9,2.3287]
[1726448291536,4.88016,2309.4,2308.9,2.3287]
[1726448291702,0.0874071,2309.3,2308.9,2.3287]
[1726448291908,0.0874071,2309.3,2308.9,2.81663539]
[1726448292215,0.45310086,2309.6,2309.1,2.3174]
[1726448292415,4.41866411,2309.5,2309.1,2.3174]
[1726448292600,4.33019,2309.4,2309.1,2.3174]
[1726448292799,5.9870835,2309.5,2309.1,2.3174]
[1726448293006,0.08872411,2309.4,2309.1,2.3174]
[1726448293394,4.41886411,2309.4,2309.1,2.3174]
[1726448293626,0.08872411,2309.4,2309.1,2.3174]
[1726448294497,8.55615411,2309.5,2309.1,2.3174]
[1726448294696,0.0888109,2309.3,2309.1,2.3174]
[1726448294898,8.55613411,2309.5,2309.1,2.3174]
[1726448295128,4.33015,2309.4,2309.1,2.3174]
[1726448295435,4.41620343,2309.3,2309.1,2.3174]
[1726448299036,4.3305,2309.2,2309.1,2.3174]
[1726448299239,4.3305,2309.2,2309.0,0.024653]
[1726448299405,8.66138,2309.1,2309.0,0.024653]
[1726448299609,10.03476537,2309.1,2309.0,0.024653]
[1726448300195,14.7987048,2309.1,2309.0,0.024653]
[1726448300398,17.1634048,2309.1,2309.0,0.024653]
[1726448301994,10.58476537,2309.1,2309.0,0.024653]
[1726448302421,4.96654343,2309.1,2309.0,0.024653]
[1726448303367,0.63585343,2309.1,2309.0,0.024653]
[1726448304058,4.41654343,2309.1,2309.0,0.024653]
[1726448304259,0.08585343,2309.1,2309.0,0.024653]
[1726448304430,0.08585343,2309.1,2309.0,2.443453]
[1726448304758,0.08585343,2309.1,2309.0,2.6877983]
[1726448305163,0.45310977,2309.4,2309.0,2.6877983]
[1726448305343,0.085593,2309.1,2309.0,2.6877983]
[1726448305937,4.78333977,2309.4,2309.0,2.6877983]
[1726448305938,0.45310977,2309.4,2309.0,2.6877983]
[1726448306258,4.78325977,2309.4,2309.0,2.6877983]
[1726448306421,0.085593,2309.3,2309.0,2.6877983]
[1726448306622,0.085593,2309.3,2309.2,2.4188]
[1726448306855,11.69966,2309.7,2309.2,4.41709636]
[1726448307161,7.37,2309.7,2309.5,2.4188]
[1726448307360,7.37,2309.7,2309.5,3.10235162]
[1726448307952,7.37,2309.7,2309.5,2.4188]
[1726448308157,5.67386686,2310.1,2309.5,4.32976]
[1726448308354,4.32891,2310.1,2309.6,2.4188]
[1726448308666,4.32901,2310.0,2309.6,3.09368]
[1726448309385,4.32891,2310.1,2309.6,3.09368]
[1726448309386,8.65787,2310.1,2309.6,3.09368]
[1726448310248,4.32891,2310.1,2309.6,3.09368]
[1726448310453,8.65789,2310.1,2309.6,3.09368]
[1726448310621,4.32891,2310.1,2309.7,2.4132]
[1726448312366,8.65783,2310.1,2309.7,3.16365938]
[1726448312572,4.32902,2310.0,2309.7,3.16365938]
[1726448312730,4.32919,2309.9,2309.7,2.4132]
[1726448314667,4.32891,2310.1,2309.7,2.4132]
[1726448315723,4.41510789,2310.0,2309.7,2.4132]
[1726448315929,4.32921,2309.9,2309.7,2.4132]
[1726448316540,0.08599789,2309.8,2309.7,2.4132]
[1726448318570,4.32967,2309.7,2309.5,2.3636]
[1726448318939,0.08599789,2309.8,2309.5,2.3636]
[1726448319156,0.08672109,2309.6,2309.5,2.3636]
[1726448319461,4.32929,2309.9,2309.5,2.3636]
[1726448319853,0.08672109,2309.8,2309.5,3.03298]
[1726448320054,0.08672109,2309.8,2309.5,2.3636]
[1726448321465,4.32892,2310.1,2309.5,6.69343]
[1726448321651,0.08672109,2310.0,2309.6,2.4391]
[1726448323065,4.41573109,2310.0,2309.6,2.4391]
[1726448323569,4.32921,2309.9,2309.6,2.4391]
[1726448323781,6.81291,2309.9,2309.6,2.4391]
[1726448324069,4.32971,2309.7,2309.4,2.4391]
[1726448324277,4.32971,2309.7,2309.0,4.5997683]
[1726448324278,0.87458977,2309.6,2309.1,2.4391]
[1726448324573,4.33013,2309.4,2309.1,2.4391]
[1726448324786,4.3305,2309.2,2309.1,2.4391]
[1726448325092,4.41717772,2309.2,2309.1,2.4391]
[1726448325447,0.08667772,2309.2,2309.1,2.4391]
[1726448325650,4.33032,2309.3,2309.1,2.4391]
[1726448325879,0.08667772,2309.2,2309.1,2.4391]
[1726448326253,4.33032,2309.3,2309.1,2.4391]
[1726448326453,0.08667772,2309.2,2309.1,2.4391]
[1726448326691,4.3305,2309.2,2309.0,0.024653]
[1726448326999,4.41717772,2309.2,2309.0,0.024653]
[1726448328080,4.33069,2309.1,2309.0,0.024653]
[1726448328288,0.08582448,2309.1,2309.0,0.024653]
[1726448328798,4.41651448,2309.1,2309.0,0.024653]
[1726448329154,5.84121593,2309.1,2309.0,0.024653]
[1726448329351,4.41651448,2309.1,2309.0,0.024653]
[1726448330605,8.74720448,2309.1,2309.0,0.024653]
[1726448330799,11.08030448,2309.1,2309.0,0.024653]
[1726448331010,11.08030448,2309.1,2308.2,4.33225]
[1726448331011,14.54786,2308.2,2308.1,0.0380057]
[1726448331300,20.19476593,2308.2,2308.1,0.0380057]
[1726448331589,18.84739965,2308.2,2308.1,0.0380057]
[1726448331794,20.19476593,2308.2,2308.1,0.0380057]
[1726448331995,14.51501965,2308.2,2308.1,0.0380057]
[1726448332207,21.04650837,2308.2,2308.1,0.0380057]
[1726448333060,25.37888837,2308.2,2308.1,0.0380057]
[1726448340764,11.75036022,2308.2,2308.1,0.0380057]
[1726448341105,8.75036022,2308.2,2308.1,0.0380057]